[Event "Turkish Youth Championships 2023"]
[Site "Samsun"]
[Date "2023.05.21"]
[Round "3.4"]
[White "Yildiz, Elif Zeren"]
[Black "Isilak, Enes"]
[Result "0-1"]
[ECO "B15"]
[WhiteElo "1722"]
[BlackElo "2181"]
[Annotator "TA"]
[PlyCount "164"]
[EventDate "2023.05.19"]
[EventType "swiss"]
[EventCountry "TUR"]
[SourceTitle "playchess.com"]
[Source "ChessBase"]
[SourceQuality "1"]
[TimeControl "5400+30"]

{[%evp 12,164,63,56,106,50,58,52,77,0,21,13,20,0,54,39,58,54,59,69,145,88,160,116,235,158,312,310,253,188,189,182,192,53,75,75,90,46,46,46,46,46,42,22,43,33,42,39,41,13,20,30,22,0,0,0,0,0,0,0,0,0,0,0,0,0,0,-8,-8,-70,0,0,0,0,0,0,0,0,0,0,0,0,0,0,0,0,0,0,0,0,0,0,0,0,0,0,0,0,0,0,0,0,0,0,0,0,0,-8,-8,-8,-8,-31,-31,-31,-40,-484,-8,-8,-8,-8,-8,-8,-8,-8,-8,-8,-8,-8,-8,-8,-8,-8,-8,-441,-367,-29968,-29970,-29969,-29970,-29972,-29972,-29972,-29973,-29975,-29976,-29976,-29975,-29976,-29977,-29977,-29977,-29977,-29978,-29978,-29979]} 1. e4 {[%emt 0:01:00]} g6 {[%emt 0:01:00]} 2. d4 {[%emt 0:00:30]} Bg7 {[%emt 0:00:30]} 3. Nc3 {[%emt 0:00:30]} c6 {[%emt 0:00:30]} 4. f4 {[%emt 0:00:30]} d5 {[%emt 0:00:30]} 5. e5 {[%emt 0:00:30]} Nh6 {[%emt 0:00:00]} 6. Be3 {[%emt 0:02:30]} O-O {[%emt 0:02:00]} 7. Nf3 {[%emt 0:01:30]} Bg4 {[%emt 0:00:30] B15: Caro-Kann: 3 Nc3: 3...g6 and 3...dxe4 4 Nxe4 Nf6 5 Nxf6+ exf6.} (7... Qb6 $14) 8. Be2 {[%emt 0:04:30]} (8. h3 $16 Bxf3 9. Qxf3) 8... Nf5 $14 {[%emt 0:01:30]} 9. Bf2 {[%emt 0:05:30] [#]} Bh6 $146 {[%emt 0:01:30] White is slightly better.} ({Predecessor:} 9... f6 10. O-O e6 11. h3 Bxf3 12. Bxf3 fxe5 13. fxe5 c5 14. Ne2 cxd4 15. Nxd4 Nxd4 16. Bxd4 {½-½ Gomez Anadon,D (2305)-Ano Tafalla,S (2105) Andorra op 37th 2019 (3)}) 10. Ng5 {[%emt 0:02:30]} (10. Ng1 $16 Bxe2 11. Ngxe2) 10... Bxe2 $11 {[%emt 0:00:30]} 11. Qxe2 {[%emt 0:02:30]} Bxg5 $1 {[%emt 0:13:30]} 12. fxg5 {[%emt 0:00:30]} Na6 {[%emt 0:04:30]} (12... f6 $11) 13. O-O-O {[%emt 0:10:30]} (13. g4 $5 Ng7 $8 14. O-O-O $14) 13... Qd7 {[%emt 0:04:30] Black is weak on the dark squares} 14. h4 {[%emt 0:06:30][%cal Bh2h4,Bh4h5][%mdl 32] g4 would be deadly.} (14. g4 $5 {[%cal Rg4f5]} Ng7 15. Rhf1 $14) 14... Ng7 $1 {[%emt 0:01:30]} 15. g4 {[%emt 0:04:30]} Nc7 {[%emt 0:16:30]} (15... f6 $14) 16. Be3 {[%emt 0:06:30]} (16. h5 $142) 16... Nce6 {[%emt 0:13:30]} (16... f5 $142) 17. Qf3 {[%emt 0:04:30]} Rfd8 {[%emt 0:07:30]} (17... Rad8 $16 {was worth a try.}) 18. Rdf1 {[%emt 0:06:30][%cal Bd1f1,Bf1f2,Bf2f7][%mdl 32]} Qe8 $2 {[%emt 0:00:30]} (18... Rf8 $16 19. Kb1 Rad8) 19. h5 $18 {[%emt 0:02:30] Threatens to win with hxg6.} Nf8 {[%emt 0:01:30]} 20. Rf2 {[%emt 0:01:30]} Nge6 {[%emt 0:02:30]} 21. Rhf1 {[%emt 0:00:30]} Rd7 {[%emt 0:02:30]} 22. Qxf7+ {[%emt 0:04:30]} ({Better is} 22. Qh3 $18) 22... Qxf7 $14 {[%emt 0:00:30]} 23. Rxf7 {[%emt 0:00:30]} c5 {[%emt 0:00:30]} 24. Ne2 {[%emt 0:00:30]} (24. dxc5 $2 {loses.} d4 25. Bxd4 (25. c6 $2 bxc6 26. Bxd4 Nxd4 $19) 25... Nxd4 $19) 24... cxd4 {[%emt 0:00:30]} 25. Nxd4 {[%emt 0:00:30]} Nxd4 {[%emt 0:00:30]} 26. Bxd4 {[%emt 0:00:30]} Ne6 {[%emt 0:00:30][%csl LRd4,LRg5]} 27. Be3 {[%emt 0:08:30]} (27. h6 $5 {[%cal Rc2c3]}) 27... a6 {[%emt 0:09:39]} 28. Bd2 {[%emt 0:05:32]} Rf8 {[%emt 0:02:12]} 29. Rxf8+ {[%emt 0:01:14]} Nxf8 {[%emt 0:00:03][%mdl 4096] Endgame KRB-KRN} 30. c3 {[%emt 0:02:11]} Rc7 {[%emt 0:00:43]} 31. Be3 {[%emt 0:01:27]} Rc4 {[%emt 0:00:43]} 32. Rf4 {[%emt 0:02:02]} Rxf4 {[%emt 0:00:21]} 33. Bxf4 $11 {[%emt 0:00:30] KB-KN} Kf7 {[%emt 0:00:30]} 34. Kd2 {[%emt 0:00:30]} Ke6 {[%emt 0:00:30]} 35. Kd3 {[%emt 0:00:48]} Nd7 {[%emt 0:00:58]} 36. Kd4 {[%emt 0:00:11]} Nb8 {[%emt 0:00:00]} 37. Kc5 {[%emt 0:01:42] And now Kb6 would win.} Nd7+ {[%emt 0:00:00]} 38. Kd4 {[%emt 0:00:10]} b6 {[%emt 0:00:00]} 39. hxg6 {[%emt 0:01:12]} hxg6 {[%emt 0:00:01]} 40. a4 {[%emt 0:01:24]} (40. c4 $11 dxc4 41. Bh2) 40... Nb8 {[%emt 0:00:04]} (40... Nc5 $15 41. b4 Nxa4) 41. c4 $1 {[%emt 0:00:30]} Nc6+ {[%emt 0:00:07]} 42. Kc3 {[%emt 0:00:00]} dxc4 {[%emt 0:09:44]} 43. Kxc4 {[%emt 0:00:16]} Nxe5+ {[%emt 0:00:00]} 44. Kd4 $1 {[%emt 0:00:00]} Nc6+ {[%emt 0:00:01]} 45. Ke4 {[%emt 0:00:13]} Kd7 {[%emt 0:00:42]} 46. Be3 {[%emt 0:00:44]} b5 {[%emt 0:01:18]} 47. axb5 {[%emt 0:00:30]} axb5 {[%emt 0:00:01]} 48. Kd5 {[%emt 0:01:14]} Nb4+ {[%emt 0:00:30]} 49. Ke4 {[%emt 0:00:09]} Kd6 {[%emt 0:01:31]} 50. Bf4+ {[%emt 0:00:50]} Kc5 {[%emt 0:01:21]} 51. b3 {[%emt 0:00:05]} Nc6 {[%emt 0:02:31]} 52. Bd2 {[%emt 0:00:25]} e6 {[%emt 0:00:30]} 53. Be1 {[%emt 0:01:06]} Kd6 {[%emt 0:00:51]} 54. Bc3 {[%emt 0:03:15]} b4 {[%emt 0:01:41]} 55. Be1 {[%emt 0:00:16]} e5 {[%emt 0:00:14]} 56. Bg3 {[%emt 0:01:35]} Ke6 {[%emt 0:00:04]} 57. Be1 {[%emt 0:00:01]} Nd4 {[%emt 0:00:21]} 58. Bxb4 {[%emt 0:00:45]} Nxb3 {[%emt 0:00:04]} 59. Bf8 {[%emt 0:00:18]} Nd2+ {[%emt 0:00:12]} 60. Ke3 {[%emt 0:00:53]} Nc4+ {[%emt 0:00:04]} 61. Ke4 {[%emt 0:00:54]} (61. Kd3 $5 {[%cal Rd3c4]} Kd5 62. Bg7 $11) 61... Nd6+ {[%emt 0:00:04]} 62. Kd3 {[%emt 0:01:37]} Kd5 {[%emt 0:00:05]} 63. Be7 $2 {[%emt 0:00:00][%mdl 8192]} (63. Bg7 $1 $15) 63... Nc4 $2 {[%emt 0:00:52]} (63... e4+ $19 64. Ke2 Ke5) 64. Bf6 {[%emt 0:00:13]} e4+ {[%emt 0:00:04]} 65. Ke2 {[%emt 0:00:04]} Ne5 {[%emt 0:00:23]} 66. Ke3 $1 {[%emt 0:02:06]} Nxg4+ {[%emt 0:00:30]} 67. Kf4 {[%emt 0:00:30]} Nf2 {[%emt 0:00:00]} 68. Ke3 {[%emt 0:00:33]} Nd3 {[%emt 0:00:09]} 69. Bc3 {[%emt 0:00:30]} Ne5 {[%emt 0:00:30]} 70. Ba1 {[%emt 0:00:30]} Nf7 {[%emt 0:00:30]} (70... Nf3 $5 71. Bf6 $8 Ne5 $11) 71. Bf6 {[%emt 0:00:30]} Nd6 {[%emt 0:00:30]} 72. Bc3 $2 {[%emt 0:00:00][%mdl 8192]} (72. Kf4 $11 {and White stays safe.}) 72... Nf5+ $1 $19 {[%emt 0:04:08]} 73. Kf4 $2 {[%emt 0:00:00]} (73. Kd2 $19) 73... e3 {[%emt 0:00:56] Black mates.} 74. Ba5 {[%emt 0:00:00] [#]} Kd4 $1 {[%emt 0:00:19]} ({Stronger than} 74... e2 75. Kf3 $11) 75. Bb6+ {[%emt 0:00:34]} Kd3 {[%emt 0:00:30]} 76. Ke5 {[%emt 0:00:00]} Ke2 {[%emt 0:00:33]} 77. Kf6 {[%emt 0:00:23]} Nh4 {[%emt 0:00:30]} 78. Ba5 {[%emt 0:00:14]} Kf2 {[%emt 0:00:04]} 79. Bb6 {[%emt 0:00:00]} Kf3 {[%emt 0:00:00]} 80. Ba5 {[%emt 0:00:29]} Kg4 {[%emt 0:00:09]} 81. Bb6 {[%emt 0:00:07] [#]} e2 $1 {[%emt 0:00:30]} 82. Bf2 {[%emt 0:00:10]} Kh5 {[%emt 0:00:00] What a fight!   Weighted Error Value: White=0.19 (very precise) /Black=0.16 (very precise)} 0-1

[Event "Turkish Youth Championships 2023"]
[Site "Samsun"]
[Date "2023.05.21"]
[Round "3.5"]
[White "Zerey, Demhat"]
[Black "Kavri, Yusuf Eren"]
[Result "0-1"]
[ECO "C00"]
[WhiteElo "1710"]
[BlackElo "2029"]
[Annotator "TA"]
[PlyCount "142"]
[EventDate "2023.05.19"]
[EventType "swiss"]
[EventCountry "TUR"]
[SourceTitle "playchess.com"]
[Source "ChessBase"]
[SourceQuality "1"]
[TimeControl "5400+30"]

{[%evp 21,142,-44,-40,-52,-41,-77,-38,-42,-30,-34,-34,-39,6,1,27,-25,-28,-16,33,18,63,-39,27,26,125,122,121,38,146,142,145,125,126,95,91,81,70,0,0,-28,230,235,377,377,673,673,630,666,660,632,577,485,595,600,518,0,0,0,0,0,0,0,0,0,0,0,0,0,0,0,0,0,0,-70,-70,-399,-394,-385,-70,-70,-70,-70,-70,-70,-70,-191,-191,-1162,-886,-4133,-1445,-1433,-1427,-1403,-1119,-12698,-1031,-1103,-950,-1879,-719,-5632,-29956,-29949,-29951,-11747,-12765,-829,-731,-29963,-29967,-29961,-29963,-29981,-29971,-29968,-29970,-29971,-29973,-29962,-7745,-6229,-6087]} 1. Nf3 {[%emt 0:01:00]} d5 {[%emt 0:01:00]} 2. g3 {[%emt 0:00:30]} Nf6 {[%emt 0:01:30]} 3. Bg2 {[%emt 0:01:30]} e6 {[%emt 0:02:30]} 4. O-O {[%emt 0:00:30]} Be7 {[%emt 0:00:30]} 5. d3 {[%emt 0:00:30]} c5 {[%emt 0:00:30]} 6. Nbd2 {[%emt 0:01:30]} Nc6 {[%emt 0:00:30]} 7. e4 {[%emt 0:00:30]} O-O {[%emt 0:04:30]} 8. Re1 {[%emt 0:01:30]} Qc7 {[%emt 0:05:30]} 9. Qe2 {[%emt 0:07:30]} b5 {[%emt 0:07:30]} 10. e5 {[%emt 0:04:30]} Nd7 {[%emt 0:00:30]} 11. Nf1 {[%emt 0:00:30]} Bb7 {[%emt 0:02:30]} 12. Bf4 {[%emt 0:02:30] C00: French: Unusual White 2nd moves.} Rfc8 {[%emt 0:00:00]} 13. Ne3 {[%emt 0:02:30]} Qd8 {[%emt 0:01:00]} (13... Ncxe5 14. Nxe5 (14. Nxd5 Bxd5 15. Nxe5 Bxg2 $11) 14... Nxe5 15. Ng4 $16) 14. h4 {[%emt 0:03:30] Black is slightly better.} a5 {[%emt 0:02:30]} 15. a4 {[%emt 0:02:30]} bxa4 {[%emt 0:05:30] [#]} 16. Rxa4 $146 {[%emt 0:00:30][%cal Oe3d5]} ({Predecessor:} 16. Ng4 Nb6 17. h5 h6 18. Qd2 Nd4 19. Nxd4 cxd4 20. Bxh6 gxh6 21. Nxh6+ Kg7 22. Qf4 {0-1 Azaladze,S (2420)-Aleksandrov,A (2492) Bhubaneswar op-A 13th 2022 (5)}) 16... Nf8 {[%emt 0:08:30]} 17. Ng4 {[%emt 0:17:30]} Ba6 {[%emt 0:07:30]} 18. Rd1 {[%emt 0:16:30]} (18. h5 $142) 18... Bb5 {[%emt 0:07:30]} 19. Raa1 {[%emt 0:00:30]} c4 {[%emt 0:00:30]} (19... Nd4 $11 20. Nxd4 cxd4) 20. d4 $14 {[%emt 0:01:30]} Nb4 {[%emt 0:03:30]} 21. Bg5 {[%emt 0:06:30]} (21. Qd2 $14) 21... Rcb8 {[%emt 0:01:30]} ({Better is} 21... Bxg5 $15 22. hxg5 (22. Nxg5 h6 $11) 22... c3 23. Qxb5 cxb2) 22. Qd2 $11 {[%emt 0:02:30]} c3 {[%emt 0:05:30]} 23. bxc3 {[%emt 0:00:30]} (23. Qxc3 $6 Bxg5 24. hxg5 (24. Nxg5 Be2 $15) 24... Rc8 $11) 23... Nc6 {[%emt 0:00:30]} 24. h5 {[%emt 0:00:30]} (24. Ne3 $16) 24... Nd7 {[%emt 0:00:00]} (24... Bxg5 $14 25. Nxg5 (25. Qxg5 Qxg5 26. Nxg5 Be2 $17) 25... h6) 25. h6 $16 {[%emt 0:12:23]} g6 {[%emt 0:00:00]} 26. Rdb1 {[%emt 0:01:50]} a4 {[%emt 0:08:30]} 27. Bf1 {[%emt 0:03:41]} Bxf1 {[%emt 0:00:30]} 28. Rxf1 {[%emt 0:01:32]} (28. Kxf1 Rxb1+ 29. Rxb1 a3 $11) 28... a3 {[%emt 0:04:30] [#]} 29. c4 {[%emt 0:02:04]} dxc4 $11 {[%emt 0:08:40]} 30. Bxe7 {[%emt 0:02:44]} Qxe7 {[%emt 0:04:57][%mdl 8192] [#]} (30... Nxe7 $11 {and Black stays safe.} 31. Ne3 Qc7) 31. d5 $1 $18 {[%emt 0:00:21]} exd5 {[%emt 0:00:39]} (31... c3 $142 32. Qxc3 Nb4) 32. Qxd5 {[%emt 0:00:30]} Nb4 {[%emt 0:00:30] [#]} (32... Ndxe5 33. Nfxe5 Nxe5 34. Nxe5 Qe6) 33. Qxd7 $3 {[%emt 0:00:00][%mdl 576] Remove Defender, Decoy} Qxd7 {[%emt 0:02:12]} 34. Nf6+ {[%emt 0:00:21]} Kh8 {[%emt 0:00:30]} 35. Nxd7 {[%emt 0:00:00] Excellent horsemanship.} Rb7 {[%emt 0:00:00]} 36. Nc5 {[%emt 0:03:19]} Rb5 {[%emt 0:00:34][%cal Ob4c2] [#]} 37. Rfd1 $1 {[%emt 0:01:48][%cal Oa1a3]} Nxc2 {[%emt 0:02:46]} (37... Rxc5 38. Rxa3) 38. Ra2 {[%emt 0:00:14]} (38. Rd7 $18 {[%cal Od7f7] Intending Rxf7! and mate.} Rxc5 39. Rxf7) 38... Rb2 $36 {[%emt 0:00:13][%mdl 2048] Black has good play.} 39. Rxb2 {[%emt 0:00:27]} axb2 {[%emt 0:00:07]} 40. Na4 $1 {[%emt 0:00:25][%mdl 64] Deflection, Back Rank} Nd4 $1 {[%emt 0:03:00]} 41. Nxd4 {[%emt 0:00:15]} (41. Rxd4 $2 {loses.} b1=Q+ 42. Kg2 Qb4 $19) 41... Rxa4 {[%emt 0:00:00][%mdl 4096] Endgame KRN-KR} 42. Nc2 {[%emt 0:01:37][%cal Rd1d8] Inhibits Ra1.} Ra8 {[%emt 0:00:00] Dodges Rd8+} 43. Kf1 {[%emt 0:00:14] And now Ke2 would win.} Rb8 {[%emt 0:00:15]} 44. Rb1 $1 {[%emt 0:01:04] Threatens to win with Ke2.} c3 {[%emt 0:00:01]} 45. Ke2 {[%emt 0:00:00]} Rd8 {[%emt 0:00:24]} 46. Ke3 {[%emt 0:00:35] Nd4 is the strong threat.} Rd2 {[%emt 0:02:43]} 47. Nd4 {[%emt 0:00:25]} (47. Na3 $11) 47... Kg8 $15 {[%emt 0:00:49] Strongly threatening ...Kf8.} 48. f4 $2 {[%emt 0:00:38][%mdl 8192]} (48. Nb3 $15 c2 49. Rxb2) 48... Kf8 $19 {[%emt 0:00:08][%cal Od2d4] ...Rxd4! would be deadly.} 49. Nb3 {[%emt 0:00:30] [#]} c2 $2 {[%emt 0:00:42]} (49... Rd1 $1 $19 {[%cal Rd1b1]} 50. Rxd1 c2) 50. Rxb2 $15 {[%emt 0:00:21] [#]} c1=Q {[%emt 0:00:08]} 51. Nxc1 {[%emt 0:00:46]} Rxb2 {[%emt 0:00:30] KR-KN} 52. g4 {[%emt 0:00:00]} Ke7 {[%emt 0:00:00] White must now prevent ...Ke6. Black is more active.} 53. Nd3 {[%emt 0:00:00]} (53. Ne2 $1 $15) 53... Rh2 $19 {[%emt 0:00:29]} 54. g5 $2 {[%emt 0:00:00]} (54. Nf2) 54... Ke6 {[%emt 0:00:11]} 55. Ke4 {[%emt 0:00:36]} Re2+ {[%emt 0:00:30]} (55... Rc2 $142 56. Kf3 Rc3) 56. Kf3 {[%emt 0:00:00]} Ra2 {[%emt 0:00:00] Hoping for ...Ra3.} 57. Kg4 {[%emt 0:00:05]} Rc2 {[%emt 0:01:35]} 58. Ne1 {[%emt 0:00:35]} Rc3 {[%emt 0:00:49]} (58... Rd2 $142 59. Nf3 Rd1) 59. Nf3 {[%emt 0:01:09]} Kd5 {[%emt 0:00:11]} 60. Nd2 {[%emt 0:01:32]} Rd3 {[%emt 0:00:30]} (60... Kd4 $142 61. Nf1 Rc1) 61. Nf1 {[%emt 0:00:30]} Ke4 {[%emt 0:00:30]} 62. Ng3+ {[%emt 0:00:30]} Ke3 {[%emt 0:00:30]} 63. f5 {[%emt 0:00:27]} Rd4+ {[%emt 0:01:34]} 64. Kh3 {[%emt 0:00:03]} Kf2 {[%emt 0:00:10]} 65. Nh1+ {[%emt 0:01:00]} Kf3 {[%emt 0:00:52]} 66. Ng3 {[%emt 0:00:06]} Rg4 {[%emt 0:00:10]} 67. Ne2 {[%emt 0:00:30]} Rxg5 {[%emt 0:00:29][%cal Rg5h5]} 68. Nd4+ {[%emt 0:00:21]} Ke4 {[%emt 0:00:16]} 69. e6 {[%emt 0:00:38]} fxe6 {[%emt 0:00:39]} (69... Kxd4 $2 70. e7 Rh5+ 71. Kg4 Rxh6 72. e8=Q (72. e8=B $2 {too greedy.} Ke5 $19) 72... gxf5+ 73. Kf4 $18) 70. Nxe6 {[%emt 0:00:11]} Rxf5 {[%emt 0:00:00] ( -> ...Re5)} 71. Kg4 {[%emt 0:00:17]} Rh5 {[%emt 0:00:23] What a bad dream for White.   Weighted Error Value: White=0.76/Black=0.64} 0-1

[Event "Turkish Youth Championships 2023"]
[Site "Samsun"]
[Date "2023.05.20"]
[Round "3.5"]
[White "Kucuk, Aybike"]
[Black "Biyiksiz, Ali Batuhan"]
[Result "1/2-1/2"]
[WhiteElo "1603"]
[BlackElo "2107"]
[Annotator "TA"]
[PlyCount "86"]
[EventDate "2023.05.19"]
[EventType "swiss"]
[EventCountry "TUR"]
[TimeControl "5400+30"]

{[%evp 25,86,20,31,18,55,53,60,29,26,26,39,31,34,0,0,0,1,13,39,0,0,-13,18,0,18,13,0,-3,0,0,0,0,0,0,16,15,37,37,34,0,15,0,0,0,0,0,88,85,133,122,111,60,79,60,160,172,161,162,162,158,158,133,133]} 1. d4 Nf6 2. c4 c5 3. d5 e6 4. Nc3 exd5 5. cxd5 d6 6. Nf3 g6 7. e4 a6 8. a4 Bg4 9. Be2 Nbd7 10. Be3 Bg7 11. O-O O-O 12. h3 Bxf3 13. Bxf3 {[%emt 0:25:00]} Re8 {[%emt 0:18:00]} 14. Qc2 {[%emt 0:04:30] A75: Modern Benoni: Classical: 9...a6 10 a4 Bg4.} Rb8 {[%emt 0:03:30]} 15. a5 {[%emt 0:04:30]} Qe7 {[%emt 0:04:30] [#]} 16. Rfe1 $146 {[%emt 0:04:30] White is slightly better.} ({Predecessor:} 16. Ra2 Qe5 17. g4 h5 18. Kg2 Nf8 19. g5 N6h7 20. Be2 Qe7 21. f4 Bxc3 22. Qxc3 Qxe4+ {0-1 Hesselbarth,K (1952)-Pueschel,W (2183) Berlin Unicorn op 2005 (2)}) 16... b5 {[%emt 0:04:30]} 17. axb6 {[%emt 0:06:30]} Rxb6 {[%emt 0:01:30]} 18. Ra2 {[%emt 0:05:30]} Reb8 {[%emt 0:02:30]} 19. Rea1 {[%emt 0:02:30]} Ne8 {[%emt 0:02:30]} 20. Be2 {[%emt 0:03:30]} Nc7 {[%emt 0:02:30]} 21. Bc1 {[%emt 0:02:30][%cal Re2a6]} (21. Bxa6 $2 Nxa6 22. Rxa6 Rxb2 $19) 21... Nb5 {[%emt 0:10:30]} 22. Nxb5 {[%emt 0:06:30]} axb5 {[%emt 0:00:30]} 23. Ra7 {[%emt 0:01:30]} Qe8 {[%emt 0:05:30]} 24. Rc7 {[%emt 0:06:30]} R8b7 {[%emt 0:10:30]} 25. Rxb7 {[%emt 0:02:30]} Rxb7 {[%emt 0:00:30]} 26. Ra6 {[%emt 0:02:30]} Rb6 {[%emt 0:02:30]} 27. Rxb6 {[%emt 0:04:30]} Nxb6 {[%emt 0:00:30]} 28. Bf4 {[%emt 0:00:30]} Qd7 {[%emt 0:01:30]} 29. b3 {[%emt 0:03:10]} Bf8 {[%emt 0:16:04] Black is weak on the light squares} 30. Qa2 {[%emt 0:01:32] Hoping for Qa6.} Qe8 {[%emt 0:01:38]} 31. f3 {[%emt 0:03:23]} b4 $1 {[%emt 0:04:22]} 32. Bf1 {[%emt 0:00:41]} Qd8 {[%emt 0:01:14]} 33. Qa5 {[%emt 0:02:00]} Qf6 {[%emt 0:00:51]} 34. Bg3 $36 {[%emt 0:00:39][%mdl 2048] Black is under pressure.} Nd7 {[%emt 0:06:08]} 35. Qc7 {[%emt 0:01:35]} Qe7 {[%emt 0:00:47] [#]} (35... Ne5 $11 {remains equal.}) 36. Bb5 $1 $16 {[%emt 0:00:43] White is much more active.} Nf6 {[%emt 0:00:18] [#]} 37. Qxe7 {[%emt 0:01:20]} Bxe7 {[%emt 0:00:30][%mdl 4096] Endgame KBB-KBN} 38. Kf1 {[%emt 0:00:16]} (38. Bh2 $16) 38... Nh5 $14 {[%emt 0:01:19]} 39. Bh2 {[%emt 0:00:30]} f6 {[%emt 0:00:00]} (39... g5 $1 $14) 40. g4 $16 {[%emt 0:01:54] White is clearly better.} Ng7 {[%emt 0:00:21]} 41. Ke2 {[%emt 0:00:30]} g5 {[%emt 0:00:30]} 42. Kd3 {[%emt 0:00:30]} Kf7 {[%emt 0:00:03]} 43. Kc4 {[%emt 0:00:00]} Ne8 {[%emt 0:00:59] Weighted Error Value: White=0.09 (flawless) /Black=0.16 (very precise)} 1/2-1/2

[Event "Turkish Youth Championships 2023"]
[Site "Samsun"]
[Date "2023.05.20"]
[Round "3.6"]
[White "Kavri, Yusuf Eren"]
[Black "Gokturk, Murat Kutay"]
[Result "1-0"]
[WhiteElo "2029"]
[BlackElo "1591"]
[Annotator "TA"]
[PlyCount "41"]
[EventDate "2023.05.19"]
[EventType "swiss"]
[EventCountry "TUR"]
[TimeControl "5400+30"]

{[%evp 16,41,29,20,61,70,79,70,90,64,82,59,98,104,143,142,243,141,456,424,496,485,818,589,894,695,831,818]} 1. c4 c6 2. Nf3 Nf6 3. Nc3 d5 4. e3 g6 5. d4 Bg7 6. b3 O-O 7. Bd3 Re8 8. O-O Nbd7 {[%cal Bb8d7,Bd7f8,Bf8e6][%mdl 32]} 9. Bb2 Nf8 {D94: Grünfeld: 4 Nf3 Bg7 5 e3.} 10. Qc2 a6 {[%emt 0:25:30] [#]} 11. Rfe1 $146 {[%emt 0:17:00]} ({Predecessor:} 11. e4 e6 12. Rfe1 b5 13. Ne5 Bb7 14. exd5 exd5 15. Nf3 Rc8 16. Rxe8 Nxe8 17. Ne2 {½-½ Galvanek,L (1957)-Masarik,R (1829) SVK-chT2C 1516 2015 (6.7)}) 11... Ne6 {[%emt 0:13:30] White is slightly better.} 12. Rad1 {[%emt 0:00:30]} Qc7 {[%emt 0:12:30]} 13. Ne5 {[%emt 0:10:30]} Rd8 {[%emt 0:09:30]} 14. f4 {[%emt 0:06:30] White is more active.} Bh6 {[%emt 0:07:30]} 15. Qf2 {[%emt 0:07:30]} b6 {[%emt 0:16:04]} (15... Nf8 $16 16. Qf3 dxc4 17. bxc4 (17. Bxc4 Be6 $16) 17... c5) 16. Ba3 {[%emt 0:04:30]} (16. f5 $18) 16... Bb7 $2 {[%emt 0:01:24][%mdl 8192] [#]} (16... dxc4 $16 {is a better chance.} 17. bxc4 (17. Bxc4 b5 $16) (17. Nxc4 c5 $14) 17... Bg7) 17. cxd5 $18 {[%emt 0:00:30] White is clearly winning.} Nxd5 {[%emt 0:02:21]} 18. Nxd5 {[%emt 0:00:00]} cxd5 {[%emt 0:01:26]} (18... Rxd5 $142 19. f5 Nd8) 19. Rc1 {[%emt 0:01:00]} Qb8 {[%emt 0:00:36]} 20. Bxe7 {[%emt 0:00:30]} Re8 {[%emt 0:00:14]} 21. Nd7 {[%emt 0:00:30][%csl LRb6,LRb8] Black got outplayed after the opening.   Weighted Error Value: White=0.55/Black=0.83} 1-0